Workbook

Sheet Data
A1: From | B1: To | C1: FromCity | D1: ToCity | E1: Price | F1: Volume | G1: Value | I1: ToCity | J1: Value | L1: Cities | M1: %Change | N1: Multiplier | P1: Method | Q1: Seconds | R1: Changes | S1: Total | T1: Factor
A2: AT | B2: BE | C2: graz | D2: brussels | E2: 3.073358786 | F2: 2042.9 | G2: =E2*F2 -> 6278.564664 | I2: aalborg | J2: =SUMIF($D$2:$D$10301,I2,$G$2:$G$10301) -> 817212.523 | L2: aalborg | M2: 0.04 | N2: =1+M2 -> 1.04 | P2: A | Q2: 3.5 | R2: 20 | S2: =IF(R2>0,Q2*10300/R2,0) -> 1802.5 | T2: 1
A3: AT | B3: BE | C3: oth AT | D3: brussels | E3: 3.073358786 | F3: 440.3 | G3: =E3*F3 -> 1353.199873 | I3: aarhus | J3: =SUMIF($D$2:$D$10301,I3,$G$2:$G$10301) -> 407590.5301 | L3: aarhus | M3: 0.04 | N3: =1+M3 -> 1.04 | P3: B | Q3: 0.535 | R3: 98 | S3: =IF(R3>0,Q3*10300/R3,0) -> 56.22959184 | T3: =IF(S3>0,$S$2/S3,0) -> 32.05607477
A4: AT | B4: BE | C4: salzburg | D4: brussels | E4: 3.073358786 | F4: 3189.3 | G4: 9801.863176 | I4: amsterdam | J4: 547425.6896 | L4: amsterdam | M4: 0.05 | N4: 1.05 | P4: C | Q4: 3.287 | R4: 10300 | S4: 3.287 | T4: =IF(S4>0,$S$2/S4,0) -> 548.372376
A5: AT | B5: BE | C5: vienna | D5: brussels | E5: 3.073358786 | F5: 2209.4 | G5: 6790.278902 | I5: ankara | J5: 161285.2177 | L5: ankara | M5: 0.02 | N5: 1.02 | P5: D | Q5: 0.321 | R5: 10300 | S5: 0.321 | T5: 5615.264798
A6: AT | B6: BE | C6: graz | D6: gent | E6: 10.55739234 | F6: 2555.2 | G6: 26976.2489 | I6: arnhem | J6: 874672.3151 | L6: arnhem | M6: 0.04 | N6: 1.04 | P6: E | Q6: 0.084 | R6: 10300 | S6: =IF(R6>0,Q6*10300/R6,0) -> 0.084 | T6: =IF(S6>0,$S$2/S6,0) -> 21458.33333
A7: AT | B7: BE | C7: oth AT | D7: gent | E7: 10.55739234 | F7: 2777.6 | G7: 29324.21296 | I7: athens | J7: 588377.0209 | L7: athens | M7: 0.03 | N7: 1.03
A8: AT | B8: BE | C8: salzburg | D8: gent | E8: 10.55739234 | F8: 437.2 | G8: 4615.691931 | I8: barcelona | J8: 21064.13076 | L8: barcelona | M8: -0.04 | N8: =1+M8 -> 0.96
A9: AT | B9: BE | C9: vienna | D9: gent | E9: 10.55739234 | F9: 3390.5 | G9: 35794.83872 | I9: bari | J9: 20458.31946 | L9: bari | M9: -0.04 | N9: =1+M9 -> 0.96
A10: AT | B10: BE | C10: graz | D10: liege | E10: 24.06053477 | F10: 1733.7 | G10: 41713.74913 | I10: basel | J10: 44266.82518 | L10: basel | M10: -0.05 | N10: 0.95
A11: AT | B11: BE | C11: oth AT | D11: liege | E11: 24.06053477 | F11: 556.6 | G11: 13392.09365 | I11: bergen | J11: 196086.207 | L11: bergen | M11: -0.02 | N11: 0.98
A12: AT | B12: BE | C12: salzburg | D12: liege | E12: 24.06053477 | F12: 2427.1 | G12: 58397.32394 | I12: berlin | J12: 53771.38132 | L12: berlin | M12: -0.04 | N12: 0.96
A13: AT | B13: BE | C13: vienna | D13: liege | E13: 24.06053477 | F13: 3038.3 | G13: 73103.12279 | I13: bilbao | J13: 130298.4532 | L13: bilbao | M13: -0.03 | N13: 0.97
A14: AT | B14: BE | C14: graz | D14: oth BE | E14: 0.6579616713 | F14: 1408.8 | G14: 926.9364026 | I14: birmingham | J14: 43249.36712 | L14: birmingham | M14: 0.04 | N14: 1.04
A15: AT | B15: BE | C15: oth AT | D15: oth BE | E15: 0.6579616713 | F15: 2741.2 | G15: 1803.604533 | I15: bologna | J15: 34189.87869 | L15: bologna | M15: 0.04 | N15: 1.04
A16: AT | B16: BE | C16: salzburg | D16: oth BE | E16: 0.6579616713 | F16: 2270.8 | G16: 1494.099363 | I16: bordeaux | J16: 47542.29694 | L16: bordeaux | M16: 0.05 | N16: 1.05
A17: AT | B17: BE | C17: vienna | D17: oth BE | E17: 0.6579616713 | F17: 2400.3 | G17: 1579.3054 | I17: bristol | J17: 14541.33281 | L17: bristol | M17: 0.02 | N17: 1.02
A18: AT | B18: CH | C18: graz | D18: basel | E18: 0.5543734052 | F18: 2406.8 | G18: 1334.265912 | I18: brno | J18: 3543252.399 | L18: brno | M18: 0.04 | N18: 1.04
A19: AT | B19: CH | C19: oth AT | D19: basel | E19: 0.5543734052 | F19: 1265.8 | G19: 701.7258564 | I19: brussels | J19: 1540491.99 | L19: brussels | M19: 0.03 | N19: 1.03
A20: AT | B20: CH | C20: salzburg | D20: basel | E20: 0.5543734052 | F20: 1772.1 | G20: 982.4051114 | I20: budapest | J20: 65089.35218 | L20: budapest | M20: -0.04 | N20: 0.96
A21: AT | B21: CH | C21: vienna | D21: basel | E21: 0.5543734052 | F21: 606.6 | G21: 336.2829076 | I21: copenhagen | J21: 64007.44822 | L21: copenhagen | M21: -0.04 | N21: 0.96
A22: AT | B22: CH | C22: graz | D22: geneve | E22: 0.6326554532 | F22: 3461.5 | G22: 2189.936851 | I22: dortmund | J22: 347.5986458 | L22: dortmund | M22: -0.05 | N22: 0.95
A23: AT | B23: CH | C23: oth AT | D23: geneve | E23: 0.6326554532 | F23: 3742.4 | G23: 2367.649768 | I23: dublin | J23: 1889.199358 | L23: dublin | M23: -0.02 | N23: 0.98
A24: AT | B24: CH | C24: salzburg | D24: geneve | E24: 0.6326554532 | F24: 3848.8 | G24: 2434.964308 | I24: dusseldorf | J24: 621.580317 | L24: dusseldorf | M24: -0.04 | N24: 0.96
A25: AT | B25: CH | C25: vienna | D25: geneve | E25: 0.6326554532 | F25: 1170.2 | G25: 740.3334113 | I25: eindhoven | J25: 1259.14914 | L25: eindhoven | M25: -0.03 | N25: 0.97
A26: AT | B26: CH | C26: graz | D26: lugano | E26: 0.3685828803 | F26: 2471.9 | G26: 911.1000218 | I26: florence | J26: 396874.4921 | L26: florence | M26: 0.04 | N26: 1.04
A27: AT | B27: CH | C27: oth AT | D27: lugano | E27: 0.3685828803 | F27: 2612.6 | G27: 962.9596331 | I27: frankfurt | J27: 393040.4357 | L27: frankfurt | M27: 0.04 | N27: 1.04
A28: AT | B28: CH | C28: salzburg | D28: lugano | E28: 0.3685828803 | F28: 3521.9 | G28: 1298.112046 | I28: geneve | J28: 623764.5163 | L28: geneve | M28: 0.05 | N28: 1.05
A29: AT | B29: CH | C29: vienna | D29: lugano | E29: 0.3685828803 | F29: 2421.7 | G29: 892.5971613 | I29: genoa | J29: 171194.3502 | L29: genoa | M29: 0.02 | N29: 1.02
A30: AT | B30: CH | C30: graz | D30: oth CH | E30: 0.1684657468 | F30: 2757.9 | G30: 464.6116832 | I30: gent | J30: 128948.2109 | L30: gent | M30: 0.04 | N30: 1.04
A31: AT | B31: CH | C31: oth AT | D31: oth CH | E31: 0.1684657468 | F31: 3249 | G31: 547.3452115 | I31: glasgow | J31: 19260.01814 | L31: glasgow | M31: 0.03 | N31: 1.03
A32: AT | B32: CH | C32: salzburg | D32: oth CH | E32: 0.1684657468 | F32: 1241.9 | G32: 209.217611 | I32: goteborg | J32: 708.4431404 | L32: goteborg | M32: -0.04 | N32: 0.96
A33: AT | B33: CH | C33: vienna | D33: oth CH | E33: 0.1684657468 | F33: 544.5 | G33: 91.72959916 | I33: graz | J33: 814.5425424 | L33: graz | M33: -0.04 | N33: 0.96
A34: AT | B34: CH | C34: graz | D34: zurich | E34: 0.1079649748 | F34: 1265.7 | G34: 136.6512686 | I34: groningen | J34: 4225.486816 | L34: groningen | M34: -0.05 | N34: 0.95
A35: AT | B35: CH | C35: oth AT | D35: zurich | E35: 0.1079649748 | F35: 3406.6 | G35: 367.7934832 | I35: hamburg | J35: 18320.93012 | L35: hamburg | M35: -0.02 | N35: 0.98
A36: AT | B36: CH | C36: salzburg | D36: zurich | E36: 0.1079649748 | F36: 159.7 | G36: 17.24200648 | I36: hannover | J36: 5767.65579 | L36: hannover | M36: -0.04 | N36: 0.96
A37: AT | B37: CH | C37: vienna | D37: zurich | E37: 0.1079649748 | F37: 1029.2 | G37: 111.1175521 | I37: helsinki | J37: 13453.77202 | L37: helsinki | M37: -0.03 | N37: 0.97
A38: AT | B38: CZ | C38: graz | D38: brno | E38: 37.07519907 | F38: 3881.8 | G38: 143918.5078 | I38: istanbul | J38: 2703696.091 | L38: istanbul | M38: 0.04 | N38: 1.04
A39: AT | B39: CZ | C39: oth AT | D39: brno | E39: 37.07519907 | F39: 3614.5 | G39: 134008.307 | I39: izmir | J39: 2544955.293 | L39: izmir | M39: 0.04 | N39: 1.04
A40: AT | B40: CZ | C40: salzburg | D40: brno | E40: 37.07519907 | F40: 1058.6 | G40: 39247.80574 | I40: katowice | J40: 4891608.893 | L40: katowice | M40: 0.05 | N40: 1.05
A41: AT | B41: CZ | C41: vienna | D41: brno | E41: 37.07519907 | F41: 1963.6 | G41: 72800.8609 | I41: koln | J41: 911989.1837 | L41: koln | M41: 0.02 | N41: 1.02
A42: AT | B42: CZ | C42: graz | D42: oth CZ | E42: 3.991112814 | F42: 255.7 | G42: 1020.527547 | I42: le-mannheim | J42: 230563.3661 | L42: le-mannheim | M42: 0.04 | N42: 1.04
A43: AT | B43: CZ | C43: oth AT | D43: oth CZ | E43: 3.991112814 | F43: 2165 | G43: 8640.759242 | I43: liege | J43: 330113.3521 | L43: liege | M43: 0.03 | N43: 1.03
A44: AT | B44: CZ | C44: salzburg | D44: oth CZ | E44: 3.991112814 | F44: 3652.3 | G44: 14576.74133 | I44: lille | J44: 8068.008201 | L44: lille | M44: -0.04 | N44: 0.96
A45: AT | B45: CZ | C45: vienna | D45: oth CZ | E45: 3.991112814 | F45: 3851.8 | G45: 15372.96834 | I45: lisbon | J45: 6724.241487 | L45: lisbon | M45: -0.04 | N45: 0.96
A46: AT | B46: CZ | C46: graz | D46: prague | E46: 0.1872466818 | F46: 1153.3 | G46: 215.9515982 | I46: london | J46: 8767.395797 | L46: london | M46: -0.05 | N46: 0.95
A47: AT | B47: CZ | C47: oth AT | D47: prague | E47: 0.1872466818 | F47: 3298 | G47: 617.5395567 | I47: lugano | J47: 38216.4975 | L47: lugano | M47: -0.02 | N47: 0.98
A48: AT | B48: CZ | C48: salzburg | D48: prague | E48: 0.1872466818 | F48: 2769.1 | G48: 518.5047867 | I48: lyon | J48: 12829.02871 | L48: lyon | M48: -0.04 | N48: 0.96
A49: AT | B49: CZ | C49: vienna | D49: prague | E49: 0.1872466818 | F49: 1091.7 | G49: 204.4172026 | I49: madrid | J49: 24794.12805 | L49: madrid | M49: -0.03 | N49: 0.97
A50: AT | B50: DE | C50: graz | D50: berlin | E50: 0.9068613485 | F50: 3061.1 | G50: 2775.993274 | I50: malmoe | J50: 3250866.261 | L50: malmoe | M50: 0.04 | N50: 1.04
A51: AT | B51: DE | C51: oth AT | D51: berlin | E51: 0.9068613485 | F51: 2181.7 | G51: 1978.499404 | I51: manchester | J51: 2575204.205 | L51: manchester | M51: 0.04 | N51: 1.04
A52: AT | B52: DE | C52: salzburg | D52: berlin | E52: 0.9068613485 | F52: 193.2 | G52: 175.2056125 | I52: marseille | J52: 3668943.334 | L52: marseille | M52: 0.05 | N52: 1.05
A53: AT | B53: DE | C53: vienna | D53: berlin | E53: 0.9068613485 | F53: 3332.9 | G53: 3022.478188 | I53: milan | J53: 1301747.919 | L53: milan | M53: 0.02 | N53: 1.02
A54: AT | B54: DE | C54: graz | D54: dortmund | E54: 0.006018232299 | F54: 1876.9 | G54: 11.2956202 | I54: moscow | J54: 27921.86893 | L54: moscow | M54: 0.04 | N54: 1.04
A55: AT | B55: DE | C55: oth AT | D55: dortmund | E55: 0.006018232299 | F55: 2241.3 | G55: 13.48866405 | I55: munich | J55: 16611.95963 | L55: munich | M55: 0.03 | N55: 1.03
A56: AT | B56: DE | C56: salzburg | D56: dortmund | E56: 0.006018232299 | F56: 3034.3 | G56: 18.26112227 | I56: nantes | J56: 741.0530549 | L56: nantes | M56: -0.04 | N56: 0.96
A57: AT | B57: DE | C57: vienna | D57: dortmund | E57: 0.006018232299 | F57: 2095.1 | G57: 12.60879849 | I57: napoli | J57: 654.0832872 | L57: napoli | M57: -0.04 | N57: 0.96
A58: AT | B58: DE | C58: graz | D58: dusseldorf | E58: 0.009844812552 | F58: 714.7 | G58: 7.036087531 | I58: newcastle | J58: 360.3926528 | L58: newcastle | M58: -0.05 | N58: 0.95
A59: AT | B59: DE | C59: oth AT | D59: dusseldorf | E59: 0.009844812552 | F59: 2466.4 | G59: 24.28124568 | I59: nice | J59: 2031.417371 | L59: nice | M59: -0.02 | N59: 0.98
A60: AT | B60: DE | C60: salzburg | D60: dusseldorf | E60: 0.009844812552 | F60: 272.3 | G60: 2.680742458 | I60: nuernberg | J60: 650.7620628 | L60: nuernberg | M60: -0.04 | N60: 0.96
A61: AT | B61: DE | C61: vienna | D61: dusseldorf | E61: 0.009844812552 | F61: 2839.7 | G61: 27.9563142 | I61: odense | J61: 1117.369541 | L61: odense | M61: -0.03 | N61: 0.97
A62: AT | B62: DE | C62: graz | D62: frankfurt | E62: 5.89797089 | F62: 3572.3 | G62: 21069.32141 | I62: oslo | J62: 491910.1372 | L62: oslo | M62: 0.04 | N62: 1.04
A63: AT | B63: DE | C63: oth AT | D63: frankfurt | E63: 5.89797089 | F63: 1359.3 | G63: 8017.111831 | I63: oth AT | J63: 457070.5 | L63: oth AT | M63: 0.04 | N63: 1.04
A64: AT | B64: DE | C64: salzburg | D64: frankfurt | E64: 5.89797089 | F64: 1300.3 | G64: 7669.131548 | I64: oth BE | J64: 695981.021 | L64: oth BE | M64: 0.05 | N64: 1.05
A65: AT | B65: DE | C65: vienna | D65: frankfurt | E65: 5.89797089 | F65: 3878 | G65: 22872.33111 | I65: oth CH | J65: 186676.7056 | L65: oth CH | M65: 0.02 | N65: 1.02
A66: AT | B66: DE | C66: graz | D66: hamburg | E66: 0.2731691967 | F66: 2943 | G66: 803.9369459 | I66: oth CZ | J66: 356092.7955 | L66: oth CZ | M66: 0.04 | N66: 1.04
A67: AT | B67: DE | C67: oth AT | D67: hamburg | E67: 0.2731691967 | F67: 875.7 | G67: =E67*F67 -> 239.2142655 | I67: oth DE | J67: =SUMIF($D$2:$D$10301,I67,$G$2:$G$10301) -> 179834.16 | L67: oth DE | M67: 0.03 | N67: 1.03
A68: AT | B68: DE | C68: salzburg | D68: hamburg | E68: 0.2731691967 | F68: 1795.7 | G68: 490.5299265 | I68: oth DK | J68: 8606.808921 | L68: oth DK | M68: -0.04 | N68: 0.96
A69: AT | B69: DE | C69: vienna | D69: hamburg | E69: 0.2731691967 | F69: 2100.6 | G69: 573.8192146 | I69: oth ES | J69: 9647.105529 | L69: oth ES | M69: -0.04 | N69: 0.96
A70: AT | B70: DE | C70: graz | D70: hannover | E70: 0.1036463758 | F70: 2602.9 | G70: 269.7811516 | I70: oth FI | J70: 4554.557878 | L70: oth FI | M70: -0.05 | N70: 0.95
A71: AT | B71: DE | C71: oth AT | D71: hannover | E71: 0.1036463758 | F71: 1063.4 | G71: 110.2175561 | I71: oth FR | J71: 19484.05577 | L71: oth FR | M71: -0.02 | N71: 0.98
A72: AT | B72: DE | C72: salzburg | D72: hannover | E72: 0.1036463758 | F72: 565.5 | G72: 58.61202553 | I72: oth GR | J72: 8287.847861 | L72: oth GR | M72: -0.04 | N72: 0.96
A73: AT | B73: DE | C73: vienna | D73: hannover | E73: 0.1036463758 | F73: 2407.2 | G73: 249.4975559 | I73: oth HU | J73: 10656.27881 | L73: oth HU | M73: -0.03 | N73: =1+M73 -> 0.97
A74: AT | B74: DE | C74: graz | D74: koln | E74: 15.47953665 | F74: 675.9 | G74: 10462.61882 | I74: oth IE | J74: 66409.29485 | L74: oth IE | M74: -0.04 | N74: 0.96
A75: AT | B75: DE | C75: oth AT | D75: koln | E75: 15.47953665 | F75: 2202.6 | G75: 34095.22742 | I75: oth IT | J75: 107843.8858 | L75: oth IT | M75: -0.03 | N75: 0.97
A76: AT | B76: DE | C76: salzburg | D76: koln | E76: 15.47953665 | F76: 3187 | G76: 49333.28329 | I76: oth NL | J76: 2702091.57 | L76: oth NL | M76: 0.04 | N76: 1.04
A77: AT | B77: DE | C77: vienna | D77: koln | E77: 15.47953665 | F77: 886.1 | G77: 13716.41742 | I77: oth NO | J77: 3620201.298 | L77: oth NO | M77: 0.04 | N77: 1.04
A78: AT | B78: DE | C78: graz | D78: le-mannheim | E78: 4.150757327 | F78: 1426.8 | G78: 5922.300554 | I78: oth PL | J78: 483015.5801 | L78: oth PL | M78: 0.05 | N78: 1.05
A79: AT | B79: DE | C79: oth AT | D79: le-mannheim | E79: 4.150757327 | F79: 1267.8 | G79: 5262.330139 | I79: oth PT | J79: 134058.4372 | L79: oth PT | M79: 0.02 | N79: 1.02
A80: AT | B80: DE | C80: salzburg | D80: le-mannheim | E80: 4.150757327 | F80: 2800.6 | G80: 11624.61097 | I80: oth RU | J80: 383541.3527 | L80: oth RU | M80: 0.04 | N80: 1.04
A81: AT | B81: DE | C81: vienna | D81: le-mannheim | E81: 4.150757327 | F81: 598.2 | G81: 2482.983033 | I81: oth SE | J81: 187642.0935 | L81: oth SE | M81: 0.03 | N81: 1.03
A82: AT | B82: DE | C82: graz | D82: munich | E82: 0.2555834128 | F82: 2422.6 | G82: 619.1763759 | I82: oth TR | J82: 750.8246534 | L82: oth TR | M82: -0.04 | N82: 0.96
A83: AT | B83: DE | C83: oth AT | D83: munich | E83: 0.2555834128 | F83: 3561.3 | G83: 910.2092081 | I83: oth UK | J83: 722.8726004 | L83: oth UK | M83: -0.04 | N83: =1+M83 -> 0.96
A84: AT | B84: DE | C84: salzburg | D84: munich | E84: 0.2555834128 | F84: 2290.5 | G84: 585.4138071 | I84: palermo | J84: 611.0146139 | L84: palermo | M84: -0.04 | N84: 0.96
A85: AT | B85: DE | C85: vienna | D85: munich | E85: 0.2555834128 | F85: 3844.7 | G85: 982.6415473 | I85: paris | J85: 796.579159 | L85: paris | M85: -0.04 | N85: 0.96
A86: AT | B86: DE | C86: graz | D86: nuernberg | E86: 0.00945102005 | F86: 2200.1 | G86: 20.79318921 | I86: pescara | J86: 659.041627 | L86: pescara | M86: -0.04 | N86: 0.96
A87: AT | B87: DE | C87: oth AT | D87: nuernberg | E87: 0.00945102005 | F87: 360.2 | G87: 3.404257422 | I87: porto | J87: 698.3236576 | L87: porto | M87: -0.04 | N87: 0.96
A88: AT | B88: DE | C88: salzburg | D88: nuernberg | E88: 0.00945102005 | F88: 1319.2 | G88: 12.46778565 | I88: prague | J88: 2243.494167 | L88: prague | M88: -0.04 | N88: 0.96
A89: AT | B89: DE | C89: vienna | D89: nuernberg | E89: 0.00945102005 | F89: 3647.9 | G89: 34.47637604 | I89: rome | J89: 596.5089637 | L89: rome | M89: -0.04 | N89: 0.96
A90: AT | B90: DE | C90: graz | D90: oth DE | E90: 2.775759308 | F90: 3908.9 | G90: 10850.16556 | I90: rotterdam | J90: 8072.434289 | L90: rotterdam | M90: -0.04 | N90: 0.96
A91: AT | B91: DE | C91: oth AT | D91: oth DE | E91: 2.775759308 | F91: 1446.8 | G91: 4015.968567 | I91: salzburg | J91: 7853.388286 | L91: salzburg | M91: -0.04 | N91: 0.96
A92: AT | B92: DE | C92: salzburg | D92: oth DE | E92: 2.775759308 | F92: 2046.2 | G92: 5679.758696 | I92: sevilla | J92: 7858.863936 | L92: sevilla | M92: -0.04 | N92: 0.96
A93: AT | B93: DE | C93: vienna | D93: oth DE | E93: 2.775759308 | F93: 3587.7 | G93: 9958.59167 | I93: st petersburg | J93: 7946.814412 | L93: st petersburg | M93: -0.04 | N93: 0.96
A94: AT | B94: DE | C94: graz | D94: stuttgart | E94: 0.06846560941 | F94: 3273.6 | G94: 224.129019 | I94: stockholm | J94: 4056.873771 | L94: stockholm | M94: -0.04 | N94: 0.96
A95: AT | B95: DE | C95: oth AT | D95: stuttgart | E95: 0.06846560941 | F95: 1275.5 | G95: 87.3278848 | I95: strasbourg | J95: 5168.728327 | L95: strasbourg | M95: -0.04 | N95: 0.96
A96: AT | B96: DE | C96: salzburg | D96: stuttgart | E96: 0.06846560941 | F96: 1233.8 | G96: 84.47286889 | I96: stuttgart | J96: 4086.395057 | L96: stuttgart | M96: -0.04 | N96: 0.96
A97: AT | B97: DE | C97: vienna | D97: stuttgart | E97: 0.06572698503 | F97: 3404.4 | G97: 223.7609478 | I97: thessaloniki | J97: 5095.990846 | L97: thessaloniki | M97: -0.04 | N97: 0.96
A98: AT | B98: DK | C98: graz | D98: aalborg | E98: 16.81517502 | F98: 1088.3 | G98: 18299.95497 | I98: toulouse | J98: 9483.359735 | L98: toulouse | M98: -0.04 | N98: 0.96
A99: AT | B99: DK | C99: oth AT | D99: aalborg | E99: 16.16843752 | F99: 2806.6 | G99: 45378.33673 | I99: turin | J99: 8194.647132 | L99: turin | M99: -0.04 | N99: 0.96
A100: AT | B100: DK | C100: salzburg | D100: aalborg | E100: 16.16843752 | F100: 2734.1 | G100: 44206.12501 | I100: valencia | J100: 7171.203462 | L100: valencia | M100: -0.04 | N100: 0.96
A101: AT | B101: DK | C101: vienna | D101: aalborg | E101: 16.16843752 | F101: 2157.3 | G101: 34880.17025 | I101: vejle | J101: 9230.357662 | L101: vejle | M101: -0.04 | N101: 0.96
A102: AT | B102: DK | C102: graz | D102: aarhus | E102: 4.985031118 | F102: 3418 | G102: 17038.83636 | I102: venice | J102: 8635.843269 | L102: venice | M102: -0.04 | N102: 0.96
A103: AT | B103: DK | C103: oth AT | D103: aarhus | E103: 4.985031118 | F103: 3257 | G103: 16236.24635 | I103: verona | J103: 8809.603866 | L103: verona | M103: -0.04 | N103: 0.96
A104: AT | B104: DK | C104: salzburg | D104: aarhus | E104: 4.985031118 | F104: 1076 | G104: 5363.893483 | I104: vienna | J104: 10454.74903 | L104: vienna | M104: -0.04 | N104: 0.96
A105: AT | B105: DK | C105: vienna | D105: aarhus | E105: 4.985031118 | F105: 3653.1 | G105: 18210.81718 | I105: warsaw | J105: 9613.250634 | L105: warsaw | M105: -0.04 | N105: 0.96
A106: AT | B106: DK | C106: graz | D106: copenhagen | E106: 0.861518281 | F106: 1977 | G106: 1703.221642 | I106: zurich | J106: 57621.82023 | L106: zurich | M106: -0.04 | N106: 0.96
A107: AT | B107: DK | C107: oth AT | D107: copenhagen | E107: 0.861518281 | F107: 2791.4 | G107: 2404.84213
A108: AT | B108: DK | C108: salzburg | D108: copenhagen | E108: 0.861518281 | F108: 3300.1 | G108: 2843.096479
A109: AT | B109: DK | C109: vienna | D109: copenhagen | E109: 0.861518281 | F109: 2920 | G109: 2515.633381
A110: AT | B110: DK | C110: graz | D110: odense | E110: 0.01538162581 | F110: 3758.1 | G110: 57.80568797
A111: AT | B111: DK | C111: oth AT | D111: odense | E111: 0.01538162581 | F111: 1168.3 | G111: 17.97035344
A112: AT | B112: DK | C112: salzburg | D112: odense | E112: 0.01538162581 | F112: 1545.3 | G112: 23.76922637
A113: AT | B113: DK | C113: vienna | D113: odense | E113: 0.01538162581 | F113: 2759 | G113: 42.43790562
A114: AT | B114: DK | C114: graz | D114: oth DK | E114: 0.1015734483 | F114: 840.5 | G114: 85.37248331
A115: AT | B115: DK | C115: oth AT | D115: oth DK | E115: 0.1015734483 | F115: 3697.9 | G115: 375.6084545
A116: AT | B116: DK | C116: salzburg | D116: oth DK | E116: 0.1015734483 | F116: 3791 | G116: 385.0649426
A117: AT | B117: DK | C117: vienna | D117: oth DK | E117: 0.1015734483 | F117: 2334 | G117: 237.0724284
A118: AT | B118: DK | C118: graz | D118: vejle | E118: 0.1204709177 | F118: 2843.5 | G118: 342.5590546
A119: AT | B119: DK | C119: oth AT | D119: vejle | E119: 0.1204709177 | F119: 1210.5 | G119: 145.8300459
A120: AT | B120: DK | C120: salzburg | D120: vejle | E120: 0.1204709177 | F120: 1737.1 | G120: 209.2700312
A121: AT | B121: DK | C121: vienna | D121: vejle | E121: 0.1204709177 | F121: 2088.7 | G121: 251.6276059
A122: AT | B122: ES | C122: graz | D122: barcelona | E122: 0.2551355676 | F122: 1062.7 | G122: 271.1325677
A123: AT | B123: ES | C123: oth AT | D123: barcelona | E123: 0.2551355676 | F123: 1879.1 | G123: 479.4252451
A124: AT | B124: ES | C124: salzburg | D124: barcelona | E124: 0.2551355676 | F124: 2210.5 | G124: 563.9771722
A125: AT | B125: ES | C125: vienna | D125: barcelona | E125: 0.2551355676 | F125: 2678.9 | G125: 683.4826721
A126: AT | B126: ES | C126: graz | D126: bilbao | E126: 1.475925546 | F126: 1458.7 | G126: 2152.932594
A127: AT | B127: ES | C127: oth AT | D127: bilbao | E127: 1.475925546 | F127: 282.8 | G127: 417.3917444
A128: AT | B128: ES | C128: salzburg | D128: bilbao | E128: 1.475925546 | F128: 2652.5 | G128: 3914.892511
A129: AT | B129: ES | C129: vienna | D129: bilbao | E129: 1.475925546 | F129: 3478.6 | G129: 5134.154604
A130: AT | B130: ES | C130: graz | D130: madrid | E130: 0.2925559405 | F130: 815.5 | G130: 238.5793695
A131: AT | B131: ES | C131: oth AT | D131: madrid | E131: 0.2925559405 | F131: 411.5 | G131: =E131*F131 -> 120.3867695
A132: AT | B132: ES | C132: salzburg | D132: madrid | E132: 0.2925559405 | F132: 2902.7 | G132: 849.2021284
A133: AT | B133: ES | C133: vienna | D133: madrid | E133: 0.2925559405 | F133: 1704.8 | G133: 498.7493673
A134: AT | B134: ES | C134: graz | D134: oth ES | E134: 0.1015734483 | F134: 1455.8 | G134: 147.8706261
A135: AT | B135: ES | C135: oth AT | D135: oth ES | E135: 0.1015734483 | F135: 1991.8 | G135: 202.3139943
A136: AT | B136: ES | C136: salzburg | D136: oth ES | E136: 0.1015734483 | F136: 253.2 | G136: 25.71839711
A137: AT | B137: ES | C137: vienna | D137: oth ES | E137: 0.1015734483 | F137: 1824.5 | G137: 185.3207564
A138: AT | B138: ES | C138: graz | D138: sevilla | E138: 0.1046206518 | F138: 2552.5 | G138: 267.0442136
A139: AT | B139: ES | C139: oth AT | D139: sevilla | E139: 0.1046206518 | F139: 944.2 | G139: 98.78281939
A140: AT | B140: ES | C140: salzburg | D140: sevilla | E140: 0.1046206518 | F140: 2108.7 | G140: 220.6135684
A141: AT | B141: ES | C141: vienna | D141: sevilla | E141: 0.1046206518 | F141: 1511.6 | G141: 158.1445772
A142: AT | B142: ES | C142: graz | D142: valencia | E142: 0.1204709177 | F142: 134.6 | G142: 16.21538553
A143: AT | B143: ES | C143: oth AT | D143: valencia | E143: 0.1204709177 | F143: 787.1 | G143: 94.82265935
A144: AT | B144: ES | C144: salzburg | D144: valencia | E144: 0.1204709177 | F144: 2809 | G144: 338.4028079
A145: AT | B145: ES | C145: vienna | D145: valencia | E145: 0.1204709177 | F145: 1686.8 | G145: 203.210344
A146: AT | B146: FI | C146: graz | D146: helsinki | E146: 0.1686854712 | F146: 722.9 | G146: 121.9427271
A147: AT | B147: FI | C147: oth AT | D147: helsinki | E147: 0.1686854712 | F147: 1207 | G147: 203.6033637
A148: AT | B148: FI | C148: salzburg | D148: helsinki | E148: 0.1686854712 | F148: 3717.9 | G148: 627.1557132
A149: AT | B149: FI | C149: vienna | D149: helsinki | E149: 0.1686854712 | F149: 2810.3 | G149: 474.0567796
A150: AT | B150: FI | C150: graz | D150: oth FI | E150: 0.06082566274 | F150: 3040.2 | G150: 184.9221799
A151: AT | B151: FI | C151: oth AT | D151: oth FI | E151: 0.06082566274 | F151: 725.4 | G151: 44.12293575
A152: AT | B152: FI | C152: salzburg | D152: oth FI | E152: 0.06082566274 | F152: 2852.4 | G152: 173.4991204
A153: AT | B153: FI | C153: vienna | D153: oth FI | E153: 0.06082566274 | F153: 3620.1 | G153: 220.1949817
A154: AT | B154: FR | C154: graz | D154: bordeaux | E154: 0.6908597549 | F154: 937.7 | G154: 647.8191922
A155: AT | B155: FR | C155: oth AT | D155: bordeaux | E155: 0.6908597549 | F155: 565.7 | G155: 390.8193633
A156: AT | B156: FR | C156: salzburg | D156: bordeaux | E156: 0.6908597549 | F156: 1041.7 | G156: 719.6686067
A157: AT | B157: FR | C157: vienna | D157: bordeaux | E157: 0.6908597549 | F157: 2060.7 | G157: 1423.654697
A158: AT | B158: FR | C158: graz | D158: lille | E158: 0.0964513585 | F158: 326.7 | G158: 31.51065882
A159: AT | B159: FR | C159: oth AT | D159: lille | E159: 0.0964513585 | F159: 782.1 | G159: 75.43460748
A160: AT | B160: FR | C160: salzburg | D160: lille | E160: 0.0964513585 | F160: 1507.6 | G160: 145.4100681
A161: AT | B161: FR | C161: vienna | D161: lille | E161: 0.0964513585 | F161: 2838 | G161: 273.7289554
A162: AT | B162: FR | C162: graz | D162: lyon | E162: 0.1797568146 | F162: 3335.6 | G162: 599.5968307
A163: AT | B163: FR | C163: oth AT | D163: lyon | E163: 0.1797568146 | F163: 210.4 | G163: 37.82083378
A164: AT | B164: FR | C164: salzburg | D164: lyon | E164: 0.1797568146 | F164: 2391.9 | G164: 429.9603248
A165: AT | B165: FR | C165: vienna | D165: lyon | E165: 0.1797568146 | F165: 3268.9 | G165: 587.6070511
A166: AT | B166: FR | C166: graz | D166: marseille | E166: 58.74369071 | F166: 2357.5 | G166: 138488.2508
A167: AT | B167: FR | C167: oth AT | D167: marseille | E167: 58.74369071 | F167: 2578.8 | G167: 151488.2296
A168: AT | B168: FR | C168: salzburg | D168: marseille | E168: 58.74369071 | F168: 2344.3 | G168: 137712.8341
A169: AT | B169: FR | C169: vienna | D169: marseille | E169: 58.74369071 | F169: 350.7 | G169: 20601.41233
A170: AT | B170: FR | C170: graz | D170: nantes | E170: 0.009352571924 | F170: 3348.2 | G170: 31.31428132
A171: AT | B171: FR | C171: oth AT | D171: nantes | E171: 0.009352571924 | F171: 3425.2 | G171: 32.03442935
A172: AT | B172: FR | C172: salzburg | D172: nantes | E172: 0.009352571924 | F172: 1997.6 | G172: 18.68269768
A173: AT | B173: FR | C173: vienna | D173: nantes | E173: 0.009352571924 | F173: 923.7 | G173: 8.638970686
A174: AT | B174: FR | C174: graz | D174: nice | E174: 0.0249089998 | F174: 1449.9 | G174: 36.11555881
A175: AT | B175: FR | C175: oth AT | D175: nice | E175: 0.0249089998 | F175: 2699.3 | G175: 67.23686316
A176: AT | B176: FR | C176: salzburg | D176: nice | E176: 0.0249089998 | F176: 3625.7 | G176: 90.31256058
A177: AT | B177: FR | C177: vienna | D177: nice | E177: 0.0249089998 | F177: 253.3 | G177: 6.30944965
A178: AT | B178: FR | C178: graz | D178: oth FR | E178: 0.2622424288 | F178: 747.8 | G178: 196.1048883
A179: AT | B179: FR | C179: oth AT | D179: oth FR | E179: 0.2622424288 | F179: 3356.4 | G179: 880.1904881
A180: AT | B180: FR | C180: salzburg | D180: oth FR | E180: 0.2622424288 | F180: 2845.7 | G180: 746.2632797
A181: AT | B181: FR | C181: vienna | D181: oth FR | E181: 0.2622424288 | F181: 1201.3 | G181: 315.0318298
A182: AT | B182: FR | C182: graz | D182: paris | E182: 0.009633149082 | F182: 2529 | G182: 24.36223403
A183: AT | B183: FR | C183: oth AT | D183: paris | E183: 0.009633149082 | F183: 266.7 | G183: 2.56916086
A184: AT | B184: FR | C184: salzburg | D184: paris | E184: 0.009633149082 | F184: 3850.7 | G184: 37.09436717
A185: AT | B185: FR | C185: vienna | D185: paris | E185: 0.009633149082 | F185: 3700.4 | G185: 35.64650486
A186: AT | B186: FR | C186: graz | D186: strasbourg | E186: 0.06572698503 | F186: 1050.7 | G186: 69.05934317
A187: AT | B187: FR | C187: oth AT | D187: strasbourg | E187: 0.06572698503 | F187: 1690.1 | G187: 111.0851774
A188: AT | B188: FR | C188: salzburg | D188: strasbourg | E188: 0.06572698503 | F188: 2244.5 | G188: 147.5242179
A189: AT | B189: FR | C189: vienna | D189: strasbourg | E189: 0.06572698503 | F189: 928.5 | G189: 61.0275056
A190: AT | B190: FR | C190: graz | D190: toulouse | E190: 0.1204709177 | F190: 2023.4 | G190: 243.760855
A191: AT | B191: FR | C191: oth AT | D191: toulouse | E191: 0.1204709177 | F191: 503.1 | G191: 60.60891871
A192: AT | B192: FR | C192: salzburg | D192: toulouse | E192: 0.1204709177 | F192: 2104.6 | G192: 253.5430935
A193: AT | B193: FR | C193: vienna | D193: toulouse | E193: 0.1204709177 | F193: 579.5 | G193: 69.81289683
A194: AT | B194: GB | C194: graz | D194: birmingham | E194: 0.5575191902 | F194: 3683.5 | G194: 2053.621937
A195: AT | B195: GB | C195: oth AT | D195: birmingham | E195: 0.5575191902 | F195: 2821.5 | G195: =E195*F195 -> 1573.040395
A196: AT | B196: GB | C196: salzburg | D196: birmingham | E196: 0.5575191902 | F196: 2135.2 | G196: 1190.414975
A197: AT | B197: GB | C197: vienna | D197: birmingham | E197: 0.5575191902 | F197: 2267.1 | G197: 1263.951756
A198: AT | B198: GB | C198: graz | D198: bristol | E198: 0.1768890342 | F198: 370.8 | G198: 65.59045388
A199: AT | B199: GB | C199: oth AT | D199: bristol | E199: 0.1768890342 | F199: 2427.4 | G199: 429.3804416
A200: AT | B200: GB | C200: salzburg | D200: bristol | E200: 0.1768890342 | F200: 1971 | G200: 348.6482864
... 10101 more rows
